fUST/lending_fUST_20240530
["ID","MTS","AMOUNT","RATE_DAILY","PERIOD"]
[328220745,1717073439206,-1528.82321299,0.00019178,2]
[328220746,1717073439215,-1528.82321299,0.00019178,2]
[328220747,1717073439224,-1528.82321299,0.00019178,2]
[328220748,1717073439237,-1528.82321299,0.00019178,2]
[328220749,1717073439246,-1528.82321299,0.00019178,2]
[328220750,1717073439255,-500.0,0.00019178,2]
[328220751,1717073439265,-1528.82321299,0.00019178,2]
[328220752,1717073439275,-1528.82321299,0.00019178,2]
[328220753,1717073439284,-1528.82321299,0.00019178,2]
[328220754,1717073439293,-1528.82321299,0.00019178,2]
[328220755,1717073439303,-1528.82321299,0.00019178,2]
[328220756,1717073439311,-1528.82321299,0.00019178,2]
[328220757,1717073439321,-1528.82321299,0.00019178,2]
[328220758,1717073439330,-1528.82321299,0.00019178,2]
[328220759,1717073439339,-1528.82321299,0.00019178,2]
[328220760,1717073439348,-1528.82321299,0.00019178,2]
[328220761,1717073439357,-1528.82321299,0.00019178,2]
[328220762,1717073439366,-1528.82321299,0.00019178,2]
[328220763,1717073439375,-1528.82321299,0.00019178,2]
[328220764,1717073439383,-1528.82321299,0.00019178,2]
[328220765,1717073439393,-1528.82321299,0.00019178,2]
[328220766,1717073439402,-1528.82321299,0.00019178,2]
[328220767,1717073439410,-1528.82321299,0.00019178,2]
[328220768,1717073439419,-1528.82321299,0.00019178,2]
[328220769,1717073439428,-1528.82321299,0.00019178,2]
[328220770,1717073439437,-1528.82321299,0.00019178,2]
[328220771,1717073439447,-1528.82321299,0.00019178,2]
[328220772,1717073439456,-1528.82321299,0.00019178,2]
[328220773,1717073439465,-1528.82321299,0.00019178,2]
[328220774,1717073439474,-1528.82321299,0.00019178,2]
[328220775,1717073439486,-1528.82321299,0.00019178,2]
[328220776,1717073439495,-1528.82321299,0.00019178,2]
[328220777,1717073439504,-1528.82321299,0.00019178,2]
[328220778,1717073439512,-1528.82321299,0.00019178,2]
[328220779,1717073439521,-1528.82321299,0.00019178,2]
[328220780,1717073439530,-1488.94086832,0.00019178,2]
[328220781,1717073439539,-1488.94086832,0.00019178,2]
[328220782,1717073439548,-1488.94086832,0.00019178,2]
[328220783,1717073439557,-1488.94086832,0.00019178,2]
[328220784,1717073439566,-1488.94086832,0.00019178,2]
[328220785,1717073439575,-1488.94086832,0.00019178,2]
[328220786,1717073439584,-1488.94086832,0.00019178,2]
[328220787,1717073439593,-1488.94086832,0.00019178,2]
[328220788,1717073439602,-1488.94086832,0.00019178,2]
[328220789,1717073439611,-1488.94086832,0.00019178,2]
[328220790,1717073439619,-1488.94086832,0.00019178,2]
[328220791,1717073439628,-1488.94086832,0.00019178,2]
[328220792,1717073439637,-1488.94086832,0.00019178,2]
[328220793,1717073439646,-1488.94086832,0.00019178,2]
[328220794,1717073439655,-1488.94086832,0.00019178,2]
[328220795,1717073439664,-1488.94086832,0.00019178,2]
[328220796,1717073439673,-1488.94086832,0.00019178,2]
[328220797,1717073439682,-1488.94086832,0.00019178,2]
[328220798,1717073439690,-1488.94086832,0.00019178,2]
[328220799,1717073439700,-1488.94086832,0.00019178,2]
[328220800,1717073439709,-1488.94086832,0.00019178,2]
[328220801,1717073439718,-1488.94086832,0.00019178,2]
[328220802,1717073439726,-1488.94086832,0.00019178,2]
[328220803,1717073439736,-391.3001725,0.00019178,2]
[328220804,1717073439745,-500.0,0.00019178,2]
[328220805,1717073439755,-500.0,0.00019178,2]
[328220806,1717073439764,-151.0,0.00019178,2]
[328220807,1717073439773,-151.0,0.00019178,2]
[328220808,1717073439783,-151.0,0.00019178,2]
[328220809,1717073439792,-151.0,0.00019178,2]
[328220810,1717073439802,-151.0,0.00019178,2]
[328220811,1717073439811,-151.0,0.00019178,2]
[328220812,1717073439820,-151.0,0.00019178,2]
[328220813,1717073439830,-271.415672,0.00019178,2]
[328220814,1717073439966,-380.68879811,0.00019178,2]
[328220815,1717073439984,-151.0,0.00019178,2]
[328220816,1717073439994,-151.0,0.00019178,2]
[328220817,1717073440005,-500.0,0.00019178,2]
[328220818,1717073440016,-500.0,0.00019178,2]
[328220819,1717073440026,-151.554469,0.00019178,2]
[328220820,1717073440036,-151.0,0.00019178,2]
[328220821,1717073440046,-151.0,0.00019178,2]
[328220822,1717073440056,-151.0,0.00019178,2]
[328220823,1717073440066,-151.0,0.00019178,2]
[328220824,1717073440076,-151.0,0.00019178,2]
[328220825,1717073440085,-151.0,0.00019178,2]
[328220826,1717073440095,-151.0,0.00019178,2]
[328220827,1717073440105,-151.0,0.00019178,2]
[328220828,1717073440116,-151.0,0.00019178,2]
[328220829,1717073440126,-151.0,0.00019178,2]
[328220830,1717073440135,-151.0,0.00019178,2]
[328220831,1717073440145,-151.0,0.00019178,2]
[328220832,1717073440154,-167.97793,0.00019178,2]
[328220833,1717073440164,-151.0,0.00019178,2]
[328220834,1717073440174,-151.0,0.00019178,2]
[328220835,1717073440185,-151.0,0.00019178,2]
[328220836,1717073440194,-169.06389984,0.00019178,2]
[328220837,1717073440204,-500.0,0.00019178,2]
[328220838,1717073440213,-151.0,0.00019178,2]
[328220839,1717073440222,-151.0,0.00019178,2]
[328220840,1717073440233,-297.485479,0.00019178,2]
[328220841,1717073440242,-500.0,0.00019178,2]
[328220842,1717073440251,-151.0,0.00019178,2]
[328220843,1717073440260,-151.0,0.00019178,2]
[328220844,1717073440270,-205.896744,0.00019178,2]
[328220845,1717073440279,-151.0,0.00019178,2]
[328220846,1717073440288,-151.0,0.00019178,2]
[328220848,1717073440298,-151.0,0.00019178,2]
[328220849,1717073440308,-151.0,0.00019178,2]
[328220850,1717073440318,-151.0,0.00019178,2]
[328220851,1717073440328,-151.0,0.00019178,2]
[328220852,1717073440337,-151.0,0.00019178,2]
[328220853,1717073440347,-151.0,0.00019178,2]
[328220854,1717073440356,-151.0,0.00019178,2]
[328220855,1717073440366,-151.0,0.00019178,2]
[328220856,1717073440375,-151.0,0.00019178,2]
[328220859,1717073440384,-151.0,0.00019178,2]
[328220862,1717073440394,-151.0,0.00019178,2]
[328220864,1717073440403,-151.0,0.00019178,2]
[328220866,1717073440413,-252.400582,0.00019178,2]
[328220868,1717073440422,-151.0,0.00019178,2]
[328220870,1717073440432,-151.0,0.00019178,2]
[328220872,1717073440441,-151.0,0.00019178,2]
[328220874,1717073440450,-151.0,0.00019178,2]
[328220876,1717073440460,-151.0,0.00019178,2]
[328220878,1717073440469,-151.0,0.00019178,2]
[328220880,1717073440486,-151.0,0.00019178,2]
[328220881,1717073440495,-151.0,0.00019178,2]
[328220882,1717073440505,-460.35439868,0.00019178,2]
[328220883,1717073440515,-151.305901,0.00019178,2]
[328220884,1717073440524,-395.561005,0.00019178,2]
[328220885,1717073440534,-395.561005,0.00019178,2]
[328220886,1717073440544,-395.561005,0.00019178,2]
[328220887,1717073440553,-395.561005,0.00019178,2]
[328220888,1717073440563,-395.561005,0.00019178,2]
[328220889,1717073440573,-395.561005,0.00019178,2]
[328220890,1717073440582,-395.561005,0.00019178,2]
[328220891,1717073440592,-395.561005,0.00019178,2]
[328220892,1717073440601,-395.561005,0.00019178,2]
[328220893,1717073440611,-395.561005,0.00019178,2]
[328220894,1717073440620,-395.561005,0.00019178,2]
[328220895,1717073440630,-395.561005,0.00019178,2]
[328220896,1717073440640,-395.561005,0.00019178,2]
[328220897,1717073440649,-395.561005,0.00019178,2]
[328220898,1717073440659,-395.561005,0.00019178,2]
[328220899,1717073440669,-395.561005,0.00019178,2]
[328220900,1717073440679,-395.561005,0.00019178,2]
[328220901,1717073440689,-395.561005,0.00019178,2]
[328220902,1717073440698,-395.561005,0.00019178,2]
[328220903,1717073440709,-395.561004,0.00019178,2]
[328220904,1717073440718,-552.520437,0.00019178,2]
[328220905,1717073440730,-552.520437,0.00019178,2]
[328220906,1717073440739,-552.520437,0.00019178,2]
[328220907,1717073440749,-552.520437,0.00019178,2]
[328220908,1717073440759,-552.520437,0.00019178,2]
[328220909,1717073440769,-552.520437,0.00019178,2]
[328220910,1717073440778,-552.520437,0.00019178,2]
[328220911,1717073440788,-552.520437,0.00019178,2]
[328220912,1717073440797,-552.520437,0.00019178,2]
[328220913,1717073440807,-552.520437,0.00019178,2]
[328220914,1717073440816,-552.520437,0.00019178,2]
[328220915,1717073440826,-552.520437,0.00019178,2]
[328220916,1717073440836,-552.520437,0.00019178,2]
[328220917,1717073440845,-552.520437,0.00019178,2]
[328220918,1717073440855,-552.520437,0.00019178,2]
[328220919,1717073440864,-552.520437,0.00019178,2]
[328220920,1717073440874,-552.520437,0.00019178,2]
[328220921,1717073440884,-552.520437,0.00019178,2]
[328220922,1717073440893,-552.520437,0.00019178,2]
[328220923,1717073440903,-552.520433,0.00019178,2]
[328220924,1717073440912,-151.0,0.00019178,2]
[328220925,1717073440922,-151.0,0.00019178,2]
[328220926,1717073440934,-206.258938,0.00019178,2]
[328220927,1717073440943,-206.258938,0.00019178,2]
[328220928,1717073440952,-206.258938,0.00019178,2]
[328220929,1717073440961,-206.258938,0.00019178,2]
[328220930,1717073440971,-206.258938,0.00019178,2]
[328220931,1717073440982,-206.258938,0.00019178,2]
[328220932,1717073440992,-206.258938,0.00019178,2]
[328220933,1717073441001,-206.258938,0.00019178,2]
[328220934,1717073441013,-206.258938,0.00019178,2]
[328220935,1717073441023,-206.258938,0.00019178,2]
[328220936,1717073441032,-206.258938,0.00019178,2]
[328220937,1717073441042,-206.258938,0.00019178,2]
[328220938,1717073441052,-206.258938,0.00019178,2]
[328220939,1717073441061,-206.258938,0.00019178,2]
[328220940,1717073441071,-206.258938,0.00019178,2]
[328220941,1717073441080,-206.258938,0.00019178,2]
[328220942,1717073441090,-206.258938,0.00019178,2]
[328220943,1717073441099,-206.258938,0.00019178,2]
[328220944,1717073441108,-206.258938,0.00019178,2]
[328220945,1717073441118,-206.258944,0.00019178,2]
[328220946,1717073441127,-151.0,0.00019178,2]
[328220947,1717073441136,-151.0,0.00019178,2]
[328220948,1717073441146,-151.0,0.00019178,2]
[328220949,1717073441155,-151.0,0.00019178,2]
[328220950,1717073441165,-151.0,0.00019178,2]
[328220951,1717073441174,-151.0,0.00019178,2]
[328220952,1717073441183,-151.0,0.00019178,2]
[328220953,1717073441193,-151.0,0.00019178,2]
[328220954,1717073441202,-151.0,0.00019178,2]
[328220955,1717073441212,-151.0,0.00019178,2]
[328220956,1717073441222,-379.87564465,0.00019178,2]
[328220957,1717073441233,-164.2468,0.00019178,2]
[328220958,1717073441242,-164.2468,0.00019178,2]
[328220959,1717073441251,-164.2468,0.00019178,2]
[328220960,1717073441260,-164.2468,0.00019178,2]
[328220961,1717073441270,-164.2468,0.00019178,2]
[328220962,1717073441279,-164.2468,0.00019178,2]
[328220963,1717073441290,-164.2468,0.00019178,2]
[328220964,1717073441300,-151.323204,0.00019178,2]
[328220965,1717073441309,-164.2468,0.00019178,2]
[328220966,1717073441319,-164.2468,0.00019178,2]
[328220967,1717073441328,-164.2468,0.00019178,2]
[328220969,1717073441338,-164.2468,0.00019178,2]
[328220971,1717073441347,-164.2468,0.00019178,2]
[328220973,1717073441357,-164.2468,0.00019178,2]
[328220975,1717073441366,-164.2468,0.00019178,2]
[328220977,1717073441375,-162.8038477,0.00019178,2]
[328220979,1717073441385,-151.0,0.00019178,2]
[328220981,1717073441394,-151.0,0.00019178,2]
[328220983,1717073441404,-500.0,0.00019178,2]
[328220985,1717073441413,-169.644612,0.00019178,2]
[328220987,1717073441423,-2000.0002,0.0002,2]
[328220989,1717073441432,-167.36965451,0.0002,2]
[328220991,1717073441442,-4263.0,0.0002,2]
[328220992,1717073441451,-164.2468,0.0002,2]
[328220994,1717073441460,-164.2468,0.0002,2]
[328220996,1717073441469,-240.76438741,0.00021,2]
[328220998,1717073441481,-227.93207928,0.00021,2]
[328221000,1717073441490,-1427.41302716,0.00021918,7]
[328221002,1717073441499,-10000.0,0.00021918,2]
[328221004,1717073441509,-166.666666,0.00021918,2]
[328221006,1717073441519,-151.0,0.00021918,2]
[328221008,1717073441528,-151.0,0.00021918,2]
[328221010,1717073441538,-11192.76342831,0.00022268,2]
[328221012,1717073441547,-164.2468,0.00022268,2]
[328221014,1717073441556,-164.2468,0.00022268,2]
[328221016,1717073441566,-196.36394323,0.00022298,2]
[328221018,1717073441576,-286.20643645,0.00022343,2]
[328221019,1717073441585,-695.26628171,0.00022343,2]
[328221022,1717073441596,-956.23896118,0.00022344,2]
[328221024,1717073441605,-527.75391758,0.00022347,4]
[328221026,1717073441615,-280.10551033,0.00022348,2]
[328221028,1717073441625,-231.16656322,0.00022348,2]
[328221029,1717073441634,-179.2244186,0.00022349,2]
[328221030,1717073441644,-155.26312756,0.0002235,2]
[328221031,1717073441653,-266.15948772,0.0002235,2]
[328221032,1717073441662,-37391.2844574,0.00022362,2]
[328221033,1717073441671,-164.2468,0.00022362,2]
[328221034,1717073441680,-164.246805,0.00022362,2]
[328221035,1717073441689,-2263.49557955,0.00022364,2]
[328221036,1717073441698,-159.40249042,0.00022365,2]
[328221037,1717073441706,-207.8748653,0.00022365,2]
[328221038,1717073441715,-196.64466609,0.00022366,2]
[328221039,1717073441724,-2846.17803635,0.00022366,2]
[328221040,1717073441734,-290.46540773,0.00022366,2]
[328221249,1717073443514,-724.44107958,0.0001735,2]
[328221287,1717073443868,-24175.55892042,0.0001735,2]
[328221289,1717073443878,-388.98029093,0.00022366,2]
[328221291,1717073443888,-160.40234796,0.00022366,2]
[328221293,1717073443898,-2014.78825552,0.00022366,2]
[328221295,1717073443908,-190.173234,0.00022367,2]
[328221297,1717073443917,-16702.02644563,0.00022368,2]
[328225568,1717074553153,-3066.73023231,0.00014999,2]
[328225569,1717074553173,-1591.2361069,0.00015133,2]
[328225570,1717074553192,-2394.433897,0.00015257,2]
[328225571,1717074553211,-154.93802479,0.00015455,2]
[328225572,1717074553231,-1870.76625632,0.00015455,2]
[328225573,1717074553252,-3360.54357928,0.00015456,2]
[328225574,1717074557115,-944.22635229,0.00015,2]
[328225575,1717074557135,-1431.19169537,0.00015456,2]
[328225960,1717074642326,-495.77179702,0.00015454,2]
[328225962,1717074642336,-3065.36012742,0.00015455,2]
[328225964,1717074642346,-20108.26472535,0.00015456,2]
[328225966,1717074642356,-190.23424749,0.000156,2]
[328225968,1717074642365,-171.42272,0.00016721,2]
[328225970,1717074642374,-155.63389931,0.00017114,2]
[328225971,1717074642384,-162.78996957,0.00019,2]
[328225972,1717074642396,-19714.50286479,0.00019075,2]
[328225973,1717074642405,-151.81263586,0.00019075,2]
[328225974,1717074642415,-192.33,0.00019165,3]
[328225975,1717074642424,-514.4011603,0.00019172,2]
[328225976,1717074642436,-2693.48406971,0.00019173,7]
[328225977,1717074642445,-231.58546758,0.00019174,2]
[328225978,1717074642454,-5530.21085024,0.00019174,2]
[328225979,1717074642466,-685.52145612,0.00019174,2]
[328226059,1717074643787,-1787.29009074,0.000189,2]
[328226061,1717074643796,-3538.96270152,0.00019174,2]
[328226063,1717074643808,-8817.23744719,0.00019174,2]
[328226065,1717074643817,-1339.54394266,0.00019175,2]
[328226067,1717074643826,-3702.81161153,0.00019175,2]
[328226069,1717074643836,-156.47926586,0.00019175,2]
[328226072,1717074643847,-33375.16697319,0.00019175,2]
[328227108,1717074964131,22848.39775622,8.99e-05,2]
[328227109,1717074964165,2051.60224378,8.99e-05,2]
[328227110,1717074968182,250.0,8.986e-05,2]
[328227135,1717075461315,7039.71718101,8.961e-05,2]
[328227136,1717075461348,5000.0,8.961e-05,2]
[328227137,1717075461381,9000.0,8.961e-05,2]
[328227138,1717075640142,-1279.86056259,8.95e-05,2]
[328227139,1717075640166,-20.42207602,8.951e-05,2]
[328227140,1717075745088,-1871.33083964,8.943e-05,2]
[328227141,1717075745108,-215.98654665,8.943e-05,2]
[328227142,1717075745128,-758.67998318,8.944e-05,2]
[328227143,1717075745149,-721.11162131,8.944e-05,2]
[328227144,1717075745169,-523.47852028,8.945e-05,2]
[328227145,1717075745190,-154.86062544,8.945e-05,2]
[328227146,1717075745337,-43391.71854628,8.945e-05,2]
[328227147,1717075747148,-12033.18635659,8.945e-05,2]
[328227148,1717075747168,-1406.98925047,8.946e-05,2]
[328227149,1717075757144,-9117.47224679,8.946e-05,2]
[328227150,1717075757163,-1279.18738799,8.948e-05,2]
[328227151,1717075757183,-3860.28281899,8.961e-05,2]
[328227152,1717075757204,-178.73233891,9.954e-05,2]
[328227153,1717075757234,-1910.45914962,9.995e-05,2]
[328227154,1717075757257,-231.73136524,9.995e-05,2]
[328227155,1717075757277,-317.90536284,9.995e-05,2]
[328227156,1717075757302,-258.53055057,9.995e-05,2]
[328227157,1717075757321,-156.60777789,9.996e-05,2]
[328227158,1717075757341,-195.79569524,9.998e-05,2]
[328227159,1717075757361,-2709.30401177,9.999e-05,2]
[328227160,1717075757384,-178.73233887,0.0001216,2]
[328227161,1717075757406,-171.4227203,0.00013699,2]
[328227162,1717075757426,-284.06582614,0.000137,2]
[328227163,1717075757446,-178.73233887,0.00014466,2]
[328227164,1717075757465,-135.91661463,0.000156,2]
[328227218,1717075832664,-5282.82787567,9.997e-05,2]
[328227220,1717075832674,-1817.91068863,9.997e-05,2]
[328227222,1717075832683,-290.5887697,9.997e-05,2]
[328227224,1717075832693,-889.80814175,9.997e-05,2]
[328227226,1717075832707,-718.91075715,9.997e-05,2]
[328227228,1717075832716,-492.45669302,9.998e-05,2]
[328227230,1717075832725,-54.14169018,0.000156,2]
[328227231,1717075832735,-275.07948327,0.000165,2]
[328227233,1717075832745,-4230.52943513,0.00018795,2]
[328227235,1717075832755,-1675.03555243,0.000189,2]
[328227237,1717075832764,-2459.25316711,0.000189,2]
[328227238,1717075832773,-361.52069986,0.00018974,2]
[328227240,1717075832784,-10530.77766411,0.00018975,2]
[328227242,1717075832794,-7955.90908224,0.00018976,2]
[328227244,1717075832803,-162.78996957,0.00019,2]
[328227246,1717075832812,-178.73233887,0.00019063,2]
[328227248,1717075832821,-155.26141367,0.00019076,2]
[328227249,1717075832831,-1672.75011485,0.00019076,2]
[328227251,1717075832839,-1110.85047066,0.00019163,2]
[328227253,1717075832852,-3000.563174,0.00019163,2]
[328227523,1717075838816,-33787.59635535,0.00019163,2]
[328227524,1717075838827,-36615.8752032,0.00019163,2]
[328227525,1717075838836,-159.71495869,0.00019169,2]
[328227526,1717075838845,-5321.26258206,0.0001917,2]
[328227527,1717075838854,-154.93802789,0.00019172,2]
[328227528,1717075838864,-896.7707273,0.00019172,2]
[328227529,1717075838874,-2270.63836996,0.00019172,2]
[328227530,1717075838883,-195.27721498,0.00019172,2]
[328227531,1717075838893,-281.85841065,0.00019173,2]
[328227532,1717075838902,-158.15762179,0.00019173,2]
[328227533,1717075838912,-1851.24575654,0.00019173,2]
[328227534,1717075838922,-434.83691766,0.00019173,2]
[328227535,1717075838931,-397.4857636,0.00019173,2]
[328227536,1717075838942,-2035.50722938,0.00019173,2]
[328227537,1717075838951,-156.64393718,0.00019173,2]
[328227538,1717075838960,-155.03883634,0.00019173,2]
[328227539,1717075838971,-2905.47578754,0.00019173,2]
[328227540,1717075838981,-244.10000558,0.00019174,2]
[328227541,1717075838991,-155.61047068,0.00019174,2]
[328227542,1717075839000,-838.42348981,0.00019174,2]
[328227543,1717075839009,-357.0026887,0.00019174,2]
[328227544,1717075839019,-23794.74384537,0.00019175,2]
[328227545,1717075839028,-286.20643645,0.00019175,2]
[328227546,1717075839038,-151.0,0.00019175,2]
[328227547,1717075839048,-151.0,0.00019175,2]
[328227548,1717075839059,-151.0,0.00019175,2]
[328227549,1717075839069,-151.0,0.00019175,2]
[328227550,1717075839078,-151.0,0.00019175,2]
[328227551,1717075839088,-210.122618,0.00019175,2]
[328227552,1717075839099,-151.0,0.00019175,2]
[328227553,1717075839108,-151.0,0.00019175,2]
[328227554,1717075839118,-151.0,0.00019175,2]
[328227555,1717075839127,-248.04891,0.00019175,2]
[328227556,1717075839136,-151.0,0.00019175,2]
[328227557,1717075839146,-151.0,0.00019175,2]
[328227558,1717075839156,-151.0,0.00019175,2]
[328227559,1717075839166,-164.41195802,0.00019176,2]
[328227560,1717075839175,-326.50885679,0.00019176,2]
[328227561,1717075839185,-175.82731346,0.00019176,2]
[328227562,1717075839195,-154.93801241,0.00019177,2]
[328227563,1717075839204,-9170.20600488,0.00019177,2]
[328227564,1717075839213,-5270.8807018,0.00019177,2]
[328227565,1717075839225,-2071.67393287,0.00019178,7]
[328227566,1717075839234,-755.03136769,0.00019178,7]
[328227567,1717075839242,-500.0,0.00019178,2]
[328227568,1717075839251,-500.0,0.00019178,2]
[328227569,1717075839260,-820.97068055,0.00019178,2]
[328227570,1717075839269,-500.0,0.00019178,2]
[328227571,1717075839279,-820.97068055,0.00019178,2]
[328227572,1717075839288,-500.0,0.00019178,2]
[328227573,1717075839298,-820.97068055,0.00019178,2]
[328227574,1717075839307,-500.0,0.00019178,2]
[328227575,1717075839316,-500.0,0.00019178,2]
[328227576,1717075839326,-820.97068055,0.00019178,2]
[328227577,1717075839335,-515.99743289,0.00019178,2]
[328227578,1717075839344,-820.97068055,0.00019178,2]
[328227579,1717075839353,-820.97068055,0.00019178,2]
[328227580,1717075839362,-500.0,0.00019178,2]
[328227581,1717075839372,-820.97068055,0.00019178,2]
[328227582,1717075839382,-500.0,0.00019178,2]
[328227583,1717075839393,-820.97068055,0.00019178,2]
[328227584,1717075839403,-511.18880448,0.00019178,2]
[328227585,1717075839412,-820.97068055,0.00019178,2]
[328227586,1717075839421,-820.97068055,0.00019178,2]
[328227587,1717075839430,-295.91035669,0.00019178,2]
[328227588,1717075839440,-820.97068055,0.00019178,2]
[328227589,1717075839449,-820.97068055,0.00019178,2]
[328227590,1717075839458,-820.97068055,0.00019178,2]
[328227591,1717075839468,-820.97068055,0.00019178,2]
[328227592,1717075839481,-820.97068055,0.00019178,2]
[328227593,1717075839490,-820.97068055,0.00019178,2]
[328227594,1717075839500,-820.97068055,0.00019178,2]
[328227595,1717075839509,-820.97068055,0.00019178,2]
[328227596,1717075839519,-820.97068055,0.00019178,2]
[328227597,1717075839529,-820.97068055,0.00019178,2]
[328227598,1717075839539,-820.97068055,0.00019178,2]
[328227599,1717075839548,-820.97068055,0.00019178,2]
[328227600,1717075839558,-820.97068055,0.00019178,2]
[328227601,1717075839568,-820.97068055,0.00019178,2]
[328227602,1717075839577,-820.97068055,0.00019178,2]
[328227603,1717075839586,-820.97068055,0.00019178,2]
[328227604,1717075839595,-820.97068055,0.00019178,2]
[328227605,1717075839605,-820.97068055,0.00019178,2]
[328227606,1717075839614,-820.97068055,0.00019178,2]
[328227607,1717075839623,-820.97068055,0.00019178,2]
[328227608,1717075839633,-820.97068055,0.00019178,2]
[328227609,1717075839642,-820.97068055,0.00019178,2]
[328227610,1717075839651,-820.97068055,0.00019178,2]
[328227611,1717075839661,-820.97068055,0.00019178,2]
[328227612,1717075839670,-820.97068055,0.00019178,2]
[328227613,1717075839678,-820.97068055,0.00019178,2]
[328227614,1717075839687,-820.97068055,0.00019178,2]
[328227615,1717075839697,-500.0,0.00019178,2]
[328227616,1717075839710,-159.00294533,0.00019178,2]
[328227617,1717075839720,-500.0,0.00019178,2]
[328227618,1717075839730,-557.65715144,0.00019178,2]
[328227619,1717075839740,-500.0,0.00019178,2]
[328227620,1717075839750,-500.0,0.00019178,2]
[328227621,1717075839759,-236.18476084,0.00019178,2]
[328227622,1717075839769,-500.0,0.00019178,2]
[328227623,1717075839779,-500.0,0.00019178,2]
[328227624,1717075839790,-500.0,0.00019178,2]
[328227625,1717075839800,-500.0,0.00019178,2]
[328227626,1717075839809,-584.7025099,0.00019178,2]
[328227627,1717075839819,-500.0,0.00019178,2]
[328227628,1717075839828,-500.0,0.00019178,2]
[328227629,1717075839839,-500.0,0.00019178,2]
[328227630,1717075839849,-500.0,0.00019178,2]
[328227631,1717075839859,-500.0,0.00019178,2]
[328227632,1717075839869,-405.75064249,0.00019178,2]
[328227633,1717075839878,-490.0,0.00019178,2]
[328227634,1717075839888,-503.2501424,0.00019178,2]
[328227635,1717075839898,-450.07666097,0.00019178,2]
[328227636,1717075839907,-157.71717594,0.00019178,2]
[328227637,1717075839917,-500.0,0.00019178,2]
[328227638,1717075839927,-500.0,0.00019178,2]
[328227639,1717075839936,-1100.50051435,0.00019178,2]
[328227640,1717075839945,-1100.50051435,0.00019178,2]
[328227641,1717075839954,-500.0,0.00019178,2]
[328227642,1717075839964,-500.0,0.00019178,2]
[328227643,1717075839975,-1100.50051435,0.00019178,2]
[328227644,1717075839983,-500.0,0.00019178,2]
[328227645,1717075839993,-500.0,0.00019178,2]
[328227646,1717075840002,-1100.50051435,0.00019178,2]
[328227647,1717075840012,-1100.50051435,0.00019178,2]
[328227648,1717075840021,-479.62496452,0.00019178,2]
[328227649,1717075840031,-500.0,0.00019178,2]
[328227650,1717075840040,-500.0,0.00019178,2]
[328227651,1717075840050,-615.0,0.00019178,2]
[328227652,1717075840059,-1100.50051435,0.00019178,2]
[328227653,1717075840069,-1100.50051435,0.00019178,2]
[328227654,1717075840079,-500.0,0.00019178,2]
[328227655,1717075840088,-1100.50051435,0.00019178,2]
[328227656,1717075840098,-500.0,0.00019178,2]
[328227657,1717075840107,-1100.50051435,0.00019178,2]
[328227658,1717075840117,-606.94363155,0.00019178,2]
[328227659,1717075840127,-1100.50051435,0.00019178,2]
[328227660,1717075840136,-1100.50051435,0.00019178,2]
[328227661,1717075840146,-1100.50051435,0.00019178,2]
[328227662,1717075840156,-1100.50051435,0.00019178,2]
[328227663,1717075840165,-1100.50051435,0.00019178,2]
[328227664,1717075840175,-1100.50051435,0.00019178,2]
[328227665,1717075840185,-1100.50051435,0.00019178,2]
[328227666,1717075840195,-500.0,0.00019178,2]
[328227667,1717075840204,-500.0,0.00019178,2]
[328227668,1717075840214,-500.0,0.00019178,2]
[328227669,1717075840225,-368.52541243,0.00019178,2]
[328227670,1717075840236,-500.0,0.00019178,2]
[328227671,1717075840246,-176.07805665,0.00019178,2]
[328227672,1717075840256,-500.0,0.00019178,2]
[328227673,1717075840265,-500.0,0.00019178,2]
[328227674,1717075840275,-500.0,0.00019178,2]
[328227675,1717075840285,-200.00000001,0.00019178,2]
[328227676,1717075840294,-550.0,0.00019178,2]
[328227677,1717075840304,-469.46997071,0.00019178,2]
[328227678,1717075840314,-500.0,0.00019178,2]
[328227679,1717075840324,-500.0,0.00019178,2]
[328227680,1717075840333,-500.0,0.00019178,2]